[Event "Polofinale MCR junioru 2023"]
[Site "Czech Republic"]
[Date "2023.11.16"]
[Round "7.31"]
[White "Svadlenka, Dominik"]
[Black "Popov, Roman"]
[Result "1-0"]
[TimeControl "90 min per 40 moves + 15 min + 30 sec / move from move 1"]
[WhiteFideId "23716258"]
[BlackFideId "23732580"]
[WhiteElo "1725"]
[BlackElo "1889"]

1. d4 {[%clk 01:30:40]} {[%emt 00:00:20]} d5 {[%clk 01:30:47]} {[%emt
00:00:14]} 2. c4 {[%clk 01:31:06]} {[%emt 00:00:04]} c6 {[%clk 01:31:12]}
{[%emt 00:00:04]} 3. Nf3 {[%clk 01:31:20]} {[%emt 00:00:15]} Nf6 {[%clk
01:31:35]} {[%emt 00:00:08]} 4. Nc3 {[%clk 01:31:37]} {[%emt 00:00:13]} dxc4
{[%clk 01:31:57]} {[%emt 00:00:08]} 5. a4 {[%clk 01:31:56]} {[%emt 00:00:10]}
Bf5 {[%clk 01:32:16]} {[%emt 00:00:11]} 6. e3 {[%clk 01:32:08]} {[%emt
00:00:18]} e6 {[%clk 01:32:16]} {[%emt 00:00:30]} 7. Bxc4 {[%clk 01:32:31]}
{[%emt 00:00:07]} Bb4 {[%clk 01:32:17]} {[%emt 00:00:29]} 8. O-O {[%clk
01:32:19]} {[%emt 00:00:42]} O-O {[%clk 01:32:29]} {[%emt 00:00:18]} 9. Qe2
{[%clk 01:32:43]} {[%emt 00:00:07]} Bg6 {[%clk 01:32:49]} {[%emt 00:00:09]} 10.
Ne5 {[%clk 01:30:44]} {[%emt 00:02:29]} a5 {[%clk 01:31:39]} {[%emt 00:01:41]}
11. Nxg6 {[%clk 01:30:19]} {[%emt 00:00:55]} hxg6 {[%clk 01:31:59]} {[%emt
00:00:09]} 12. Rd1 {[%clk 01:28:58]} {[%emt 00:01:51]} Qe7 {[%clk 01:27:05]}
{[%emt 00:05:24]} 13. e4 {[%clk 01:18:53]} {[%emt 00:10:34]} e5 {[%clk
01:21:08]} {[%emt 00:06:27]} 14. dxe5 {[%clk 01:08:30]} {[%emt 00:10:54]} Qxe5
{[%clk 01:10:38]} {[%emt 00:11:00]} 15. f4 {[%clk 01:07:13]} {[%emt 00:01:47]}
Qc5+ {[%clk 01:02:33]} {[%emt 00:08:36]} 16. Be3 {[%clk 01:05:49]} {[%emt
00:01:54]} Qe7 {[%clk 01:02:08]} {[%emt 00:00:55]} 17. e5 {[%clk 01:01:44]}
{[%emt 00:04:34]} Bc5 {[%clk 00:55:31]} {[%emt 00:07:07]} 18. Rd3 {[%clk
00:40:34]} {[%emt 00:21:40]} Nfd7 {[%clk 00:37:11]} {[%emt 00:18:50]} 19. e6
{[%clk 00:20:11]} {[%emt 00:20:54]} fxe6 {[%clk 00:30:42]} {[%emt 00:06:59]} 20.
Qg4 {[%clk 00:19:57]} {[%emt 00:00:43]} Rf5 {[%clk 00:20:09]} {[%emt 00:11:03]}
21. Qxg6 {[%clk 00:15:34]} {[%emt 00:04:53]} Rf6 {[%clk 00:15:05]} {[%emt
00:05:34]} 22. Qg4 {[%clk 00:15:07]} {[%emt 00:00:58]} Nf8 {[%clk 00:07:41]}
{[%emt 00:07:54]} 23. Ne4 {[%clk 00:12:19]} {[%emt 00:03:18]} Bxe3+ {[%clk
00:07:56]} {[%emt 00:00:15]} 24. Rxe3 {[%clk 00:12:43]} {[%emt 00:00:06]} Rg6
{[%clk 00:08:00]} {[%emt 00:00:27]} 25. Qe2 {[%clk 00:12:09]} {[%emt 00:01:04]}
Kh8 {[%clk 00:01:02]} {[%emt 00:07:27]} 26. Ng5 {[%clk 00:10:41]} {[%emt
00:01:58]} Rh6 {[%clk 00:00:36]} {[%emt 00:00:56]} 27. Nxe6 {[%clk 00:07:19]}
{[%emt 00:03:53]} Nxe6 {[%clk 00:00:40]} {[%emt 00:00:27]} 28. Rxe6 {[%clk
00:06:47]} {[%emt 00:01:02]} Qc5+ {[%clk 00:00:33]} {[%emt 00:00:36]} 29. Kh1
{[%clk 00:06:50]} {[%emt 00:00:27]} Nd7 {[%clk 00:00:36]} {[%emt 00:00:27]} 30.
Rxh6+ {[%clk 00:05:23]} {[%emt 00:01:57]} gxh6 {[%clk 00:01:02]} {[%emt
00:00:03]} 31. Qe6 {[%clk 00:05:25]} {[%emt 00:00:27]} Nf8 {[%clk 00:00:35]}
{[%emt 00:00:58]} 32. Qg8# {[%emt 00:00:07]} 1-0

[Event "Polofinale MCR junioru 2023"]
[Site "Czech Republic"]
[Date "2023.11.16"]
[Round "7.32"]
[White "Fizerova, Lucie"]
[Black "Urbansky, Stepan"]
[Result "0-1"]
[TimeControl "90 min per 40 moves + 15 min + 30 sec / move from move 1"]
[WhiteFideId "385115"]
[BlackFideId "23761741"]
[WhiteElo "1886"]
[BlackElo "1675"]

1. c4 {[%clk 01:30:56]} {[%emt 00:00:04]} Nf6 {[%clk 01:29:52]} {[%emt
00:01:08]} 2. Nc3 {[%clk 01:31:09]} {[%emt 00:00:17]} g6 {[%clk 01:30:09]}
{[%emt 00:00:12]} 3. g3 {[%clk 01:31:29]} {[%emt 00:00:10]} Bg7 {[%clk
01:30:32]} {[%emt 00:00:07]} 4. Bg2 {[%clk 01:31:54]} {[%emt 00:00:05]} O-O
{[%clk 01:30:47]} {[%emt 00:00:15]} 5. d4 {[%clk 01:30:42]} {[%emt 00:01:42]}
d6 {[%clk 01:31:01]} {[%emt 00:00:16]} 6. e4 {[%clk 01:29:44]} {[%emt
00:01:28]} Nbd7 {[%clk 01:29:05]} {[%emt 00:02:26]} 7. Nge2 {[%clk 01:28:05]}
{[%emt 00:02:09]} e5 {[%clk 01:26:21]} {[%emt 00:03:14]} 8. d5 {[%clk
01:26:40]} {[%emt 00:01:55]} Nh5 {[%emt 00:09:44]} 9. O-O {[%clk 01:22:21]}
{[%emt 00:02:01]} f5 {[%clk 01:13:10]} {[%emt 00:07:13]} 10. exf5 {[%clk
01:09:24]} {[%emt 00:13:27]} gxf5 {[%clk 01:11:12]} {[%emt 00:02:28]} 11. f3
{[%clk 01:02:53]} {[%emt 00:07:02]} f4 {[%clk 00:58:52]} {[%emt 00:12:49]} 12.
Ne4 {[%clk 00:58:11]} {[%emt 00:05:12]} Nc5 {[%clk 00:46:31]} {[%emt 00:12:51]}
13. Nxc5 {[%clk 00:54:38]} {[%emt 00:04:03]} dxc5 {[%clk 00:46:32]} {[%emt
00:00:29]} 14. g4 {[%clk 00:54:11]} {[%emt 00:00:57]} Nf6 {[%clk 00:42:29]}
{[%emt 00:04:32]} 15. Nc3 {[%clk 00:51:24]} {[%emt 00:03:18]} Ne8 {[%clk
00:34:32]} {[%emt 00:08:27]} 16. Re1 {[%clk 00:47:43]} {[%emt 00:04:11]} h5
{[%clk 00:32:37]} {[%emt 00:02:25]} 17. h3 {[%clk 00:40:02]} {[%emt 00:08:11]}
hxg4 {[%clk 00:30:26]} {[%emt 00:02:41]} 18. fxg4 {[%clk 00:39:19]} {[%emt
00:01:13]} Qh4 {[%clk 00:28:25]} {[%emt 00:02:31]} 19. Rf1 {[%clk 00:33:29]}
{[%emt 00:06:21]} Nf6 {[%clk 00:23:07]} {[%emt 00:05:48]} 20. Qe1 {[%clk
00:28:17]} {[%emt 00:05:42]} Qxe1 {[%clk 00:18:46]} {[%emt 00:04:51]} 21. Rxe1
{[%clk 00:28:41]} {[%emt 00:00:06]} Ne8 {[%clk 00:18:47]} {[%emt 00:00:30]} 22.
Bf3 {[%clk 00:27:02]} {[%emt 00:02:09]} Nd6 {[%clk 00:17:24]} {[%emt 00:01:53]}
23. h4 {[%clk 00:19:06]} {[%emt 00:08:26]} Nxc4 {[%clk 00:13:09]} {[%emt
00:04:45]} 24. Ne4 {[%clk 00:17:00]} {[%emt 00:02:36]} b6 {[%clk 00:12:29]}
{[%emt 00:01:11]} 25. Kf2 {[%clk 00:14:16]} {[%emt 00:03:14]} Nd6 {[%clk
00:12:12]} {[%emt 00:00:47]} 26. Nxd6 {[%clk 00:11:09]} {[%emt 00:03:36]} cxd6
{[%clk 00:12:31]} {[%emt 00:00:11]} 27. Rb1 {[%clk 00:08:27]} {[%emt 00:03:12]}
b5 {[%clk 00:09:10]} {[%emt 00:03:52]} 28. b3 {[%clk 00:07:45]} {[%emt
00:01:11]} a5 {[%clk 00:08:35]} {[%emt 00:01:06]} 29. Bd2 {[%clk 00:06:23]}
{[%emt 00:01:52]} b4 {[%clk 00:07:58]} {[%emt 00:01:07]} 30. h5 {[%clk
00:04:52]} {[%emt 00:02:00]} Bh6 {[%clk 00:07:42]} {[%emt 00:00:46]} 31. g5
{[%clk 00:04:44]} {[%emt 00:00:38]} Bxg5 {[%clk 00:04:36]} {[%emt 00:03:36]} 32.
Rg1 {[%clk 00:04:54]} {[%emt 00:00:20]} Rf5 {[%clk 00:04:32]} {[%emt 00:00:34]}
33. Be4 {[%clk 00:03:57]} {[%emt 00:01:27]} Kf7 {[%clk 00:04:13]} {[%emt
00:00:49]} 34. Kf3 {[%clk 00:04:05]} {[%emt 00:00:22]} Bh6 {[%clk 00:04:00]}
{[%emt 00:00:43]} 35. Bxf5 {[%clk 00:03:05]} {[%emt 00:01:30]} Bxf5 {[%clk
00:04:21]} {[%emt 00:00:08]} 36. Rbe1 {[%clk 00:02:52]} {[%emt 00:00:43]} a4
{[%clk 00:03:40]} {[%emt 00:01:11]} 37. Bc1 {[%clk 00:02:27]} {[%emt 00:00:55]}
axb3 {[%clk 00:02:38]} {[%emt 00:01:32]} 38. axb3 {[%clk 00:02:52]} {[%emt
00:00:06]} Ra2 {[%clk 00:02:14]} {[%emt 00:00:53]} 39. Rgf1 {[%clk 00:01:40]}
{[%emt 00:01:43]} e4+ {[%clk 00:01:28]} {[%emt 00:01:16]} 40. Rxe4 {[%clk
00:02:05]} {[%emt 00:00:05]} Bxe4+ {[%clk 00:01:49]} {[%emt 00:00:09]} 41. Kxe4
{[%clk 00:02:29]} {[%emt 00:00:05]} Ra1 {[%clk 00:00:31]} {[%emt 00:01:48]} 42.
Kd3 {[%clk 00:15:22]} {[%emt 00:03:07]} Kg8 {[%clk 00:11:10]} {[%emt 00:05:21]}
43. Rg1+ {[%clk 00:12:19]} {[%emt 00:03:34]} Kh7 {[%clk 00:11:04]} {[%emt
00:00:35]} 44. Re1 {[%clk 00:10:37]} {[%emt 00:02:12]} Bg5 {[%clk 00:06:57]}
{[%emt 00:04:37]} 45. Bd2 {[%clk 00:07:36]} {[%emt 00:03:32]} Rxe1 {[%clk
00:04:59]} {[%emt 00:02:28]} 46. Bxe1 {[%clk 00:08:04]} {[%emt 00:00:02]} Kh6
{[%clk 00:04:24]} {[%emt 00:01:05]} 47. Ke4 {[%clk 00:08:08]} {[%emt 00:00:27]}
Kxh5 {[%clk 00:04:27]} {[%emt 00:00:27]} 48. Kf3 {[%clk 00:08:30]} {[%emt
00:00:08]} Kg6 {[%clk 00:03:40]} {[%emt 00:01:17]} 49. Ke4 {[%clk 00:06:56]}
{[%emt 00:02:04]} Kh5 {[%clk 00:02:26]} {[%emt 00:01:43]} 50. Kf3 {[%clk
00:06:39]} {[%emt 00:00:47]} Bh6 {[%clk 00:01:55]} {[%emt 00:01:01]} 51. Bd2
{[%clk 00:04:57]} {[%emt 00:02:13]} Kg6 {[%clk 00:01:39]} {[%emt 00:00:46]} 52.
Bc1 {[%clk 00:04:13]} {[%emt 00:01:14]} Kf5 {[%clk 00:01:35]} {[%emt 00:00:34]}
53. Bb2 {[%clk 00:03:56]} {[%emt 00:00:47]} Bg5 {[%clk 00:01:34]} {[%emt
00:00:30]} 54. Ba1 {[%clk 00:01:22]} {[%emt 00:03:05]} Bf6 {[%clk 00:01:28]}
{[%emt 00:00:36]} 55. Bxf6 {[%clk 00:01:50]} {[%emt 00:00:03]} Kxf6 {[%clk
00:01:50]} {[%emt 00:00:08]} 56. Kxf4 {[%clk 00:02:16]} {[%emt 00:00:04]} c4
{[%clk 00:01:37]} {[%emt 00:00:43]} 57. Ke3 {[%clk 00:02:10]} {[%emt 00:00:36]}
cxb3 {[%clk 00:01:52]} {[%emt 00:00:16]} 0-1

[Event "Polofinale MCR junioru 2023"]
[Site "Czech Republic"]
[Date "2023.11.16"]
[Round "7.33"]
[White "Hampl, David"]
[Black "Kocman, Patrik"]
[Result "1/2-1/2"]
[TimeControl "90 min per 40 moves + 15 min + 30 sec / move from move 1"]
[WhiteFideId "398802"]
[BlackFideId "23735732"]
[WhiteElo "1801"]
[BlackElo "1478"]

1. d4 {[%clk 01:29:51]} {[%emt 00:01:28]} Nf6 {[%clk 01:30:53]} {[%emt
00:00:07]} 2. Bg5 {[%clk 01:30:16]} {[%emt 00:00:06]} d5 {[%clk 01:30:39]}
{[%emt 00:00:44]} 3. Bxf6 {[%clk 01:30:24]} {[%emt 00:00:22]} exf6 {[%clk
01:31:00]} {[%emt 00:00:10]} 4. e3 {[%clk 01:30:38]} {[%emt 00:00:15]} Bd6
{[%clk 01:30:31]} {[%emt 00:00:59]} 5. g3 {[%clk 01:30:27]} {[%emt 00:00:41]}
O-O {[%clk 01:29:54]} {[%emt 00:01:06]} 6. Bg2 {[%clk 01:30:39]} {[%emt
00:00:18]} c6 {[%clk 01:29:19]} {[%emt 00:01:06]} 7. Ne2 {[%clk 01:30:55]}
{[%emt 00:00:14]} Bf5 {[%clk 01:26:27]} {[%emt 00:03:20]} 8. O-O {[%clk
01:30:16]} {[%emt 00:01:10]} Qd7 {[%clk 01:25:51]} {[%emt 00:01:06]} 9. Re1
{[%clk 01:29:08]} {[%emt 00:01:38]} Na6 {[%clk 01:23:32]} {[%emt 00:02:48]} 10.
a3 {[%clk 01:26:52]} {[%emt 00:02:47]} Nc7 {[%clk 01:20:52]} {[%emt 00:03:10]}
11. Nd2 {[%clk 01:25:30]} {[%emt 00:01:52]} Ne6 {[%clk 01:14:26]} {[%emt
00:06:55]} 12. c4 {[%clk 01:23:26]} {[%emt 00:02:05]} dxc4 {[%clk 01:14:27]}
{[%emt 00:00:30]} 13. Nxc4 {[%clk 01:23:55]} {[%emt 00:00:30]} Bc7 {[%clk
01:09:43]} {[%emt 00:05:13]} 14. b4 {[%clk 01:21:38]} {[%emt 00:02:48]} Rfe8
{[%clk 01:08:08]} {[%emt 00:02:05]} 15. Qb3 {[%clk 01:17:24]} {[%emt 00:04:43]}
h6 {[%clk 01:02:29]} {[%emt 00:06:08]} 16. Nc3 {[%clk 01:15:15]} {[%emt
00:02:40]} Ng5 {[%clk 00:58:10]} {[%emt 00:04:48]} 17. Rad1 {[%clk 01:09:04]}
{[%emt 00:06:41]} Bg4 {[%clk 00:54:46]} {[%emt 00:03:54]} 18. Rd3 {[%clk
01:03:23]} {[%emt 00:06:12]} Nf3+ {[%clk 00:53:23]} {[%emt 00:01:51]} 19. Bxf3
{[%clk 01:02:51]} {[%emt 00:01:03]} Bxf3 {[%clk 00:53:51]} {[%emt 00:00:03]} 20.
e4 {[%clk 01:03:01]} {[%emt 00:00:20]} Bh5 {[%clk 00:52:49]} {[%emt 00:01:31]}
21. d5 {[%clk 00:50:54]} {[%emt 00:12:38]} Rad8 {[%clk 00:46:14]} {[%emt
00:07:04]} 22. d6 {[%clk 00:47:25]} {[%emt 00:04:00]} Bb8 {[%clk 00:45:35]}
{[%emt 00:01:09]} 23. f4 {[%clk 00:45:58]} {[%emt 00:01:57]} b5 {[%clk
00:36:35]} {[%emt 00:09:30]} 24. Na5 {[%clk 00:25:04]} {[%emt 00:21:25]} Re6
{[%clk 00:19:46]} {[%emt 00:17:17]} 25. e5 {[%clk 00:20:30]} {[%emt 00:05:06]}
fxe5 {[%clk 00:17:49]} {[%emt 00:02:27]} 26. fxe5 {[%clk 00:20:23]} {[%emt
00:00:36]} Bg6 {[%clk 00:17:44]} {[%emt 00:00:35]} 27. Rde3 {[%clk 00:19:47]}
{[%emt 00:01:07]} Rde8 {[%clk 00:16:20]} {[%emt 00:01:54]} 28. Nd1 {[%clk
00:14:23]} {[%emt 00:05:55]} Kh7 {[%clk 00:14:24]} {[%emt 00:02:26]} 29. Qc3
{[%clk 00:13:10]} {[%emt 00:01:42]} Rc8 {[%clk 00:14:20]} {[%emt 00:00:34]} 30.
Nb3 {[%clk 00:13:00]} {[%emt 00:00:41]} Bxd6 {[%clk 00:11:05]} {[%emt
00:03:45]} 31. exd6 {[%clk 00:13:06]} {[%emt 00:00:24]} Rxe3 {[%clk 00:11:19]}
{[%emt 00:00:15]} 32. Nxe3 {[%clk 00:11:53]} {[%emt 00:01:43]} Qxd6 {[%clk
00:11:29]} {[%emt 00:00:21]} 33. Ng4 {[%clk 00:11:28]} {[%emt 00:00:53]} f6
{[%clk 00:10:49]} {[%emt 00:01:10]} 34. Ne3 {[%clk 00:10:14]} {[%emt 00:01:44]}
Re8 {[%clk 00:08:18]} {[%emt 00:02:58]} 35. Ng2 {[%clk 00:09:49]} {[%emt
00:01:00]} Rd8 {[%clk 00:08:13]} {[%emt 00:00:35]} 36. Nf4 {[%clk 00:08:48]}
{[%emt 00:01:30]} Bf7 {[%clk 00:08:22]} {[%emt 00:00:19]} 37. Na5 {[%clk
00:08:49]} {[%emt 00:00:32]} g5 {[%clk 00:08:00]} {[%emt 00:00:51]} 38. Ng2
{[%clk 00:08:48]} {[%emt 00:00:31]} Rc8 {[%clk 00:07:49]} {[%emt 00:00:41]} 39.
Rf1 {[%clk 00:08:22]} {[%emt 00:00:56]} Kg7 {[%clk 00:07:48]} {[%emt 00:00:31]}
40. Ne3 {[%clk 00:08:31]} {[%emt 00:00:21]} Bg6 {[%clk 00:07:10]} {[%emt
00:01:08]} 41. Ng4 {[%clk 00:08:16]} {[%emt 00:00:45]} Rf8 {[%clk 00:07:13]}
{[%emt 00:00:27]} 42. Qxc6 {[%clk 00:02:38]} {[%emt 00:06:09]} Qd4+ {[%clk
00:07:12]} {[%emt 00:00:31]} 43. Nf2 {[%clk 00:02:53]} {[%emt 00:00:15]} Re8
{[%clk 00:06:24]} {[%emt 00:01:14]} 44. Qxb5 {[%clk 00:02:13]} {[%emt
00:01:13]} h5 {[%clk 00:05:51]} {[%emt 00:01:03]} 45. Rd1 {[%clk 00:00:48]}
{[%emt 00:01:55]} Qe3 {[%clk 00:05:45]} {[%emt 00:00:35]} 46. Nc4 {[%clk
00:15:19]} {[%emt 00:01:31]} Qb3 {[%clk 00:21:09]} {[%emt 00:00:35]} 47. Qd7+
{[%clk 00:13:11]} {[%emt 00:02:39]} Kh6 {[%clk 00:21:04]} {[%emt 00:00:36]} 48.
Qd4 {[%clk 00:11:16]} {[%emt 00:02:25]} Re2 {[%clk 00:20:35]} {[%emt 00:00:57]}
49. Kf1 {[%clk 00:09:36]} {[%emt 00:02:11]} Qf3 {[%clk 00:19:30]} {[%emt
00:01:35]} 50. Nd2 {[%clk 00:06:46]} {[%emt 00:03:21]} Rxf2+ {[%clk 00:18:03]}
{[%emt 00:01:58]} 51. Qxf2 {[%clk 00:06:13]} {[%emt 00:01:03]} Qxd1+ {[%clk
00:18:28]} {[%emt 00:00:05]} 52. Kg2 {[%clk 00:06:18]} {[%emt 00:00:24]} Qc2
{[%clk 00:17:03]} {[%emt 00:01:50]} 53. Nf3 {[%clk 00:05:10]} {[%emt 00:01:43]}
Qc6 {[%clk 00:16:31]} {[%emt 00:01:00]} 54. Qc5 {[%clk 00:04:33]} {[%emt
00:01:09]} Qb7 {[%clk 00:15:32]} {[%emt 00:01:28]} 55. Kf2 {[%clk 00:04:44]}
{[%emt 00:00:20]} Qf7 {[%clk 00:14:02]} {[%emt 00:01:56]} 56. Qc3 {[%clk
00:03:53]} {[%emt 00:01:24]} Qe6 {[%clk 00:12:41]} {[%emt 00:01:47]} 57. Qe3
{[%clk 00:03:59]} {[%emt 00:00:27]} Qa2+ {[%clk 00:11:38]} {[%emt 00:01:32]} 58.
Nd2 {[%clk 00:04:27]} {[%emt 00:00:03]} Qd5 {[%clk 00:11:50]} {[%emt 00:00:15]}
59. a4 {[%clk 00:03:50]} {[%emt 00:01:12]} Bc2 {[%clk 00:10:28]} {[%emt
00:01:49]} 60. a5 {[%clk 00:03:45]} {[%emt 00:00:37]} Ba4 {[%clk 00:10:05]}
{[%emt 00:00:51]} 61. Ne4 {[%clk 00:03:30]} {[%emt 00:00:48]} Qa2+ {[%clk
00:09:26]} {[%emt 00:01:08]} 62. Qe2 {[%clk 00:03:40]} {[%emt 00:00:19]} Qa1
{[%clk 00:07:13]} {[%emt 00:02:41]} 63. Nc5 {[%clk 00:03:21]} {[%emt 00:00:52]}
Qd4+ {[%clk 00:07:18]} {[%emt 00:00:23]} 64. Qe3 {[%clk 00:03:09]} {[%emt
00:00:44]} Qb2+ {[%clk 00:06:16]} {[%emt 00:01:31]} 65. Kg1 {[%clk 00:03:21]}
{[%emt 00:00:20]} Qb1+ {[%clk 00:05:58]} {[%emt 00:00:46]} 66. Kf2 {[%clk
00:03:48]} {[%emt 00:00:06]} Qb2+ {[%clk 00:06:16]} {[%emt 00:00:12]} 1/2-1/2

[Event "Polofinale MCR junioru 2023"]
[Site "Czech Republic"]
[Date "2023.11.16"]
[Round "7.34"]
[White "Jurok, Vojtech"]
[Black "Valdman, Jakub"]
[Result "1/2-1/2"]
[TimeControl "90 min per 40 moves + 15 min + 30 sec / move from move 1"]
[WhiteFideId "23741023"]
[BlackFideId "23718196"]
[WhiteElo "1801"]
[BlackElo "1594"]

1. e4 {[%clk 01:30:58]} {[%emt 00:00:01]} e5 {[%clk 01:30:53]} {[%emt
00:00:07]} 2. Nc3 {[%clk 01:31:23]} {[%emt 00:00:04]} Nf6 {[%clk 01:31:16]}
{[%emt 00:00:08]} 3. f4 {[%clk 01:31:40]} {[%emt 00:00:13]} d5 {[%clk
01:31:20]} {[%emt 00:00:26]} 4. fxe5 {[%clk 01:31:58]} {[%emt 00:00:12]} Nxe4
{[%clk 01:31:28]} {[%emt 00:00:22]} 5. Qf3 {[%clk 01:32:17]} {[%emt 00:00:11]}
Nxc3 {[%clk 01:31:25]} {[%emt 00:00:33]} 6. bxc3 {[%clk 01:32:32]} {[%emt
00:00:15]} Be7 {[%clk 01:31:19]} {[%emt 00:00:36]} 7. d4 {[%clk 01:32:46]}
{[%emt 00:00:15]} O-O {[%clk 01:31:11]} {[%emt 00:00:39]} 8. Bd3 {[%clk
01:32:08]} {[%emt 00:01:09]} f6 {[%clk 01:30:55]} {[%emt 00:00:46]} 9. Qh5
{[%clk 01:07:46]} {[%emt 00:24:51]} g6 {[%clk 01:29:48]} {[%emt 00:01:37]} 10.
Bxg6 {[%clk 01:06:54]} {[%emt 00:01:21]} hxg6 {[%clk 01:30:11]} {[%emt
00:00:07]} 11. Qxg6+ {[%clk 01:07:15]} {[%emt 00:00:10]} Kh8 {[%clk 01:30:36]}
{[%emt 00:00:05]} 12. Qh6+ {[%clk 01:06:25]} {[%emt 00:01:20]} Kg8 {[%clk
01:30:59]} {[%emt 00:00:07]} 13. Qg6+ {[%clk 01:06:42]} {[%emt 00:00:13]} Kh8
{[%clk 01:31:23]} {[%emt 00:00:05]} 14. Qh6+ {[%clk 01:07:07]} {[%emt
00:00:04]} Kg8 {[%clk 01:31:48]} {[%emt 00:00:05]} 15. Qg6+ {[%clk 01:07:28]}
{[%emt 00:00:09]} 1/2-1/2

[Event "Polofinale MCR junioru 2023"]
[Site "Czech Republic"]
[Date "2023.11.16"]
[Round "7.35"]
[White "Slaby, Matej"]
[Black "Lieber, Lukas"]
[Result "1-0"]
[TimeControl "90 min per 40 moves + 15 min + 30 sec / move from move 1"]
[WhiteFideId "23734876"]
[BlackFideId "23700688"]
[WhiteElo "1940"]
[BlackElo "1959"]

1. e4 {[%clk 01:27:44]} {[%emt 00:03:14]} c6 {[%clk 01:30:47]} {[%emt
00:00:13]} 2. d4 {[%clk 01:28:10]} {[%emt 00:00:04]} d5 {[%clk 01:31:05]}
{[%emt 00:00:12]} 3. e5 {[%clk 01:28:36]} {[%emt 00:00:04]} c5 {[%clk
01:31:11]} {[%emt 00:00:24]} 4. dxc5 {[%clk 01:28:47]} {[%emt 00:00:20]} e6
{[%clk 01:31:39]} {[%emt 00:00:02]} 5. Be3 {[%clk 01:26:41]} {[%emt 00:02:36]}
Nd7 {[%clk 01:31:42]} {[%emt 00:00:27]} 6. Nf3 {[%clk 01:24:13]} {[%emt
00:02:58]} Ne7 {[%clk 01:32:10]} {[%emt 00:00:02]} 7. a3 {[%clk 01:18:06]}
{[%emt 00:06:38]} Nc6 {[%clk 01:31:59]} {[%emt 00:00:40]} 8. b4 {[%clk
01:17:56]} {[%emt 00:00:40]} Ncxe5 {[%clk 01:31:56]} {[%emt 00:00:33]} 9. Nbd2
{[%clk 01:18:04]} {[%emt 00:00:21]} Ng4 {[%clk 01:30:41]} {[%emt 00:01:45]} 10.
Bg5 {[%clk 01:17:35]} {[%emt 00:00:59]} f6 {[%clk 01:29:30]} {[%emt 00:01:41]}
11. Bh4 {[%clk 01:17:37]} {[%emt 00:00:28]} Nh6 {[%clk 01:28:37]} {[%emt
00:01:23]} 12. c4 {[%clk 01:14:56]} {[%emt 00:03:11]} d4 {[%clk 01:27:01]}
{[%emt 00:02:06]} 13. Nxd4 {[%clk 01:08:02]} {[%emt 00:07:24]} Nxc5 {[%clk
01:27:29]} {[%emt 00:00:03]} 14. N2f3 {[%clk 01:08:09]} {[%emt 00:00:22]} Ne4
{[%clk 01:25:32]} {[%emt 00:02:26]} 15. Bd3 {[%clk 01:08:17]} {[%emt 00:00:22]}
Nd6 {[%clk 01:25:01]} {[%emt 00:01:01]} 16. Qe2 {[%clk 00:59:35]} {[%emt
00:09:12]} Qe7 {[%clk 01:22:22]} {[%emt 00:03:09]} 17. c5 {[%clk 00:58:49]}
{[%emt 00:01:17]} Ndf5 {[%clk 01:22:50]} {[%emt 00:00:02]} 18. Bb5+ {[%clk
00:59:09]} {[%emt 00:00:11]} Kf7 {[%clk 01:22:38]} {[%emt 00:00:41]} 19. Bg3
{[%clk 00:55:05]} {[%emt 00:04:34]} g6 {[%clk 01:22:00]} {[%emt 00:01:07]} 20.
Rd1 {[%clk 00:54:02]} {[%emt 00:01:34]} Bg7 {[%clk 01:21:41]} {[%emt 00:00:48]}
21. Bc4 {[%clk 00:53:49]} {[%emt 00:00:43]} Rd8 {[%clk 01:21:09]} {[%emt
00:01:01]} 22. O-O {[%clk 00:53:04]} {[%emt 00:01:16]} Bd7 {[%clk 01:19:29]}
{[%emt 00:02:10]} 23. Rfe1 {[%clk 00:51:56]} {[%emt 00:01:38]} Re8 {[%clk
01:19:54]} {[%emt 00:00:04]} 24. Nxe6 {[%clk 00:44:54]} {[%emt 00:07:33]} Bxe6
{[%clk 01:19:09]} {[%emt 00:01:15]} 25. Qa2 {[%clk 00:44:59]} {[%emt 00:00:25]}
Kf8 {[%clk 01:08:22]} {[%emt 00:11:15]} 26. Rxe6 {[%clk 00:44:50]} {[%emt
00:00:40]} Rad8 {[%clk 01:08:20]} {[%emt 00:00:33]} 27. Rde1 {[%clk 00:40:08]}
{[%emt 00:05:11]} Qd7 {[%clk 01:07:45]} {[%emt 00:01:05]} 28. Rxe8+ {[%clk
00:40:05]} {[%emt 00:00:34]} Rxe8 {[%clk 01:08:13]} {[%emt 00:00:02]} 29. Rxe8+
{[%clk 00:40:25]} {[%emt 00:00:10]} Qxe8 {[%clk 01:07:51]} {[%emt 00:00:52]} 30.
Qe2 {[%clk 00:40:45]} {[%emt 00:00:10]} Qd8 {[%clk 01:07:08]} {[%emt 00:01:12]}
31. Qd3 {[%clk 00:35:55]} {[%emt 00:05:20]} Qe7 {[%clk 01:04:28]} {[%emt
00:03:06]} 32. Bb8 {[%clk 00:35:10]} {[%emt 00:01:20]} a6 {[%clk 01:03:57]}
{[%emt 00:01:01]} 33. h3 {[%clk 00:35:27]} {[%emt 00:00:13]} Nf7 {[%clk
01:02:53]} {[%emt 00:01:33]} 34. Qd5 {[%clk 00:29:20]} {[%emt 00:06:37]} Ke8
{[%clk 00:56:45]} {[%emt 00:06:32]} 35. a4 {[%clk 00:24:26]} {[%emt 00:05:30]}
Ng5 {[%clk 00:52:56]} {[%emt 00:04:18]} 36. Nxg5 {[%clk 00:20:40]} {[%emt
00:04:16]} fxg5 {[%clk 00:52:01]} {[%emt 00:01:25]} 37. Qe6 {[%clk 00:17:02]}
{[%emt 00:04:08]} Bd4 {[%clk 00:49:13]} {[%emt 00:03:17]} 38. Qc8+ {[%clk
00:14:08]} {[%emt 00:03:24]} Qd8 {[%clk 00:49:03]} {[%emt 00:00:38]} 39. Bf7+
{[%clk 00:13:42]} {[%emt 00:00:59]} Ke7 {[%clk 00:49:31]} {[%emt 00:00:02]} 40.
Qxb7+ {[%clk 00:13:44]} {[%emt 00:00:29]} Kf6 {[%clk 00:48:29]} {[%emt
00:01:28]} 41. Bd5 {[%clk 00:13:28]} {[%emt 00:00:50]} Ne7 {[%clk 00:46:42]}
{[%emt 00:02:15]} 42. Bd6 {[%clk 00:12:48]} {[%emt 00:01:12]} a5 {[%clk
00:41:16]} {[%emt 00:05:55]} 43. Bc4 {[%clk 00:02:56]} {[%emt 00:10:23]} axb4
{[%clk 00:37:16]} {[%emt 00:04:30]} 44. Qe4 {[%clk 00:01:31]} {[%emt 00:01:50]}
Nf5 {[%clk 00:20:58]} {[%emt 00:16:52]} 45. g4 {[%clk 00:01:55]} {[%emt
00:00:06]} Bc3 {[%clk 00:16:33]} {[%emt 00:04:55]} 46. gxf5 {[%clk 00:01:58]}
{[%emt 00:00:26]} g4 {[%clk 00:15:00]} {[%emt 00:02:03]} 47. hxg4 {[%clk
00:15:06]} {[%emt 00:02:52]} Kg7 {[%clk 00:30:28]} {[%emt 00:00:32]} 48. Qe7+
{[%clk 00:15:17]} {[%emt 00:00:19]} 1-0